[Event "Juniorallsvenskan 2019, Division 1 and 2"]
[Site "Molnlycke kulturhus, Biblioteksgatan 2, Molnlycke, Sweden"]
[Date "2019.11.22"]
[Round "1.1"]
[White "Troberg Eskola, Love"]
[Black "Storme, Isak"]
[Result "0-1"]
[TimeControl "90 minutes + 30 seconds per move from move one"]
[BlackTitle "FM"]
[WhiteFideId "1724185"]
[BlackFideId "1728113"]
[WhiteElo "2096"]
[BlackElo "2229"]

1. Nf3 {[%clk 01:30:58]} {[%emt 00:00:02]} d5 {[%clk 01:30:54]} {[%emt
00:00:07]} 2. c4 {[%clk 01:31:22]} {[%emt 00:00:06]} e6 {[%clk 01:31:14]}
{[%emt 00:00:10]} 3. g3 {[%clk 01:31:39]} {[%emt 00:00:12]} dxc4 {[%clk
01:31:39]} {[%emt 00:00:06]} 4. Qa4+ {[%clk 01:31:57]} {[%emt 00:00:12]} Nd7
{[%clk 01:31:51]} {[%emt 00:00:17]} 5. Qxc4 {[%clk 01:32:21]} {[%emt 00:00:06]}
c5 {[%clk 01:32:03]} {[%emt 00:00:18]} 6. Bg2 {[%clk 01:32:39]} {[%emt
00:00:12]} Ngf6 {[%clk 01:32:26]} {[%emt 00:00:07]} 7. O-O {[%clk 01:32:39]}
{[%emt 00:00:30]} b6 {[%clk 01:32:18]} {[%emt 00:00:38]} 8. b3 {[%clk
01:24:41]} {[%emt 00:08:29]} Bb7 {[%clk 01:31:33]} {[%emt 00:01:15]} 9. Bb2
{[%clk 01:24:45]} {[%emt 00:00:25]} Be7 {[%clk 01:30:03]} {[%emt 00:01:58]} 10.
d3 {[%clk 01:21:54]} {[%emt 00:03:23]} O-O {[%clk 01:29:28]} {[%emt 00:01:04]}
11. Nbd2 {[%clk 01:22:13]} {[%emt 00:00:11]} Qc7 {[%clk 01:26:17]} {[%emt
00:03:40]} 12. Rac1 {[%clk 01:17:04]} {[%emt 00:05:40]} Rac8 {[%clk 01:26:10]}
{[%emt 00:00:37]} 13. d4 {[%clk 01:13:34]} {[%emt 00:04:00]} Bd5 {[%clk
01:20:36]} {[%emt 00:06:03]} 14. Qd3 {[%clk 01:12:19]} {[%emt 00:01:46]} Qb7
{[%clk 01:20:14]} {[%emt 00:00:52]} 15. Nh4 {[%clk 01:01:02]} {[%emt 00:11:47]}
Rfd8 {[%clk 01:13:01]} {[%emt 00:07:44]} 16. Bxd5 {[%clk 00:57:01]} {[%emt
00:04:31]} Qxd5 {[%clk 01:07:21]} {[%emt 00:06:10]} 17. Nhf3 {[%clk 00:53:52]}
{[%emt 00:03:37]} Qh5 {[%clk 01:00:22]} {[%emt 00:07:30]} 18. Qa6 {[%clk
00:46:24]} {[%emt 00:07:59]} Rc7 {[%clk 00:57:23]} {[%emt 00:03:29]} 19. b4
{[%clk 00:40:06]} {[%emt 00:06:48]} Nb8 {[%clk 00:51:30]} {[%emt 00:06:22]} 20.
Qa4 {[%clk 00:38:29]} {[%emt 00:02:07]} Rb7 {[%clk 00:42:54]} {[%emt 00:09:05]}
21. dxc5 {[%clk 00:26:47]} {[%emt 00:12:14]} bxc5 {[%clk 00:43:18]} {[%emt
00:00:06]} 22. b5 {[%clk 00:26:57]} {[%emt 00:00:19]} Nbd7 {[%clk 00:42:20]}
{[%emt 00:01:27]} 23. Nc4 {[%clk 00:26:21]} {[%emt 00:01:07]} Rdb8 {[%clk
00:40:42]} {[%emt 00:02:07]} 24. Be5 {[%clk 00:24:51]} {[%emt 00:02:01]} Nxe5
{[%clk 00:37:29]} {[%emt 00:03:42]} 25. Ncxe5 {[%clk 00:25:03]} {[%emt
00:00:19]} Bf8 {[%clk 00:37:10]} {[%emt 00:00:49]} 26. Nc6 {[%clk 00:25:08]}
{[%emt 00:00:25]} Ra8 {[%clk 00:37:06]} {[%emt 00:00:34]} 27. Qa6 {[%clk
00:24:49]} {[%emt 00:00:50]} Rb6 {[%clk 00:36:20]} {[%emt 00:01:15]} 28. Qa5
{[%clk 00:24:33]} {[%emt 00:00:45]} Nd5 {[%clk 00:29:21]} {[%emt 00:07:30]} 29.
a4 {[%clk 00:21:21]} {[%emt 00:03:43]} Nb4 {[%clk 00:28:11]} {[%emt 00:01:39]}
30. Nxb4 {[%clk 00:19:21]} {[%emt 00:02:30]} cxb4 {[%clk 00:28:24]} {[%emt
00:00:17]} 31. Rc7 {[%clk 00:18:40]} {[%emt 00:01:11]} e5 {[%clk 00:24:07]}
{[%emt 00:04:46]} 32. Rc6 {[%clk 00:15:48]} {[%emt 00:03:23]} Rb7 {[%clk
00:19:07]} {[%emt 00:05:30]} 33. b6 {[%clk 00:15:33]} {[%emt 00:00:45]} Rbb8
{[%clk 00:18:08]} {[%emt 00:01:29]} 34. bxa7 {[%clk 00:14:43]} {[%emt
00:01:20]} Rb7 {[%clk 00:18:21]} {[%emt 00:00:16]} 35. Ra6 {[%clk 00:13:41]}
{[%emt 00:01:33]} f6 {[%clk 00:18:19]} {[%emt 00:00:31]} 36. Rd1 {[%clk
00:11:49]} {[%emt 00:02:23]} Qf7 {[%clk 00:18:24]} {[%emt 00:00:24]} 37. Rd8
{[%clk 00:09:23]} {[%emt 00:02:57]} Rxd8 {[%clk 00:18:29]} {[%emt 00:00:25]} 38.
Qxd8 {[%clk 00:09:36]} {[%emt 00:00:17]} Rxa7 {[%clk 00:18:54]} {[%emt
00:00:05]} 39. Rxa7 {[%clk 00:07:58]} {[%emt 00:02:08]} Qxa7 {[%clk 00:19:19]}
{[%emt 00:00:06]} 40. a5 {[%clk 00:07:31]} {[%emt 00:00:57]} Qb7 {[%clk
00:15:24]} {[%emt 00:04:23]} 41. Nd2 {[%clk 00:04:41]} {[%emt 00:03:21]} Kf7
{[%clk 00:12:55]} {[%emt 00:02:59]} 42. Nb3 {[%clk 00:04:26]} {[%emt 00:00:45]}
Be7 {[%clk 00:10:15]} {[%emt 00:03:09]} 43. Qd3 {[%clk 00:04:47]} {[%emt
00:00:10]} g6 {[%clk 00:08:58]} {[%emt 00:01:47]} 44. a6 {[%clk 00:04:41]}
{[%emt 00:00:37]} Qc6 {[%clk 00:08:04]} {[%emt 00:01:23]} 45. e4 {[%clk
00:04:09]} {[%emt 00:01:02]} Ke8 {[%clk 00:07:35]} {[%emt 00:00:57]} 46. a7
{[%clk 00:02:52]} {[%emt 00:01:49]} Qb7 {[%clk 00:05:46]} {[%emt 00:02:19]} 47.
Qe3 {[%clk 00:03:02]} {[%emt 00:00:21]} Qa6 {[%clk 00:05:30]} {[%emt 00:00:44]}
48. Kg2 {[%clk 00:02:50]} {[%emt 00:00:43]} Bd6 {[%clk 00:04:14]} {[%emt
00:01:46]} 49. f3 {[%clk 00:02:04]} {[%emt 00:01:17]} Kd8 {[%clk 00:03:08]}
{[%emt 00:01:36]} 50. Nc5 {[%clk 00:01:24]} {[%emt 00:01:11]} Qa2+ {[%clk
00:03:32]} {[%emt 00:00:05]} 51. Kh3 {[%clk 00:01:42]} {[%emt 00:00:11]} Kc8
{[%clk 00:02:41]} {[%emt 00:01:22]} 52. Qb3 {[%clk 00:01:23]} {[%emt 00:00:49]}
Qxa7 {[%clk 00:03:01]} {[%emt 00:00:10]} 53. Qg8+ {[%clk 00:01:44]} {[%emt
00:00:08]} Kc7 {[%clk 00:03:20]} {[%emt 00:00:11]} 54. Qf7+ {[%clk 00:01:19]}
{[%emt 00:00:55]} Kb6 {[%clk 00:03:25]} {[%emt 00:00:25]} 55. Nd7+ {[%clk
00:01:23]} {[%emt 00:00:28]} Kb5 {[%clk 00:02:32]} {[%emt 00:01:23]} 56. Qd5+
{[%clk 00:01:36]} {[%emt 00:00:16]} Bc5 {[%clk 00:02:36]} {[%emt 00:00:26]} 57.
Kh4 {[%clk 00:01:12]} {[%emt 00:00:54]} Qc7 {[%clk 00:01:45]} {[%emt 00:01:21]}
58. Nxf6 {[%clk 00:00:53]} {[%emt 00:00:50]} Qd6 {[%clk 00:01:13]} {[%emt
00:01:02]} 59. Qb7+ {[%clk 00:00:48]} {[%emt 00:00:35]} Kc4 {[%clk 00:01:20]}
{[%emt 00:00:22]} 60. Nd5 {[%clk 00:00:56]} {[%emt 00:00:23]} h6 {[%clk
00:01:04]} {[%emt 00:00:45]} 61. g4 {[%clk 00:01:11]} {[%emt 00:00:15]} b3
{[%clk 00:01:09]} {[%emt 00:00:26]} 62. h3 {[%clk 00:00:58]} {[%emt 00:00:42]}
Bf2 {[%clk 00:01:31]} {[%emt 00:00:08]} 0-1

[Event "Juniorallsvenskan 2019, Division 1 and 2"]
[Site "Molnlycke kulturhus, Biblioteksgatan 2, Molnlycke, Sweden"]
[Date "2019.11.22"]
[Round "1.2"]
[White "Rasti, Arvin"]
[Black "Torngren, Gustav"]
[Result "1/2-1/2"]
[TimeControl "90 minutes + 30 seconds per move from move one"]
[BlackTitle "CM"]
[WhiteFideId "1741160"]
[BlackFideId "1728970"]
[WhiteElo "2206"]
[BlackElo "2247"]

1. Nf3 {[%clk 01:30:51]} {[%emt 00:00:09]} g6 {[%clk 01:30:50]} {[%emt
00:00:10]} 2. d4 {[%clk 01:30:44]} {[%emt 00:00:36]} Nf6 {[%clk 01:31:12]}
{[%emt 00:00:08]} 3. c4 {[%clk 01:30:44]} {[%emt 00:00:31]} c5 {[%clk
01:31:31]} {[%emt 00:00:11]} 4. d5 {[%clk 01:30:37]} {[%emt 00:00:37]} Bg7
{[%clk 01:30:48]} {[%emt 00:01:13]} 5. Nc3 {[%clk 01:30:52]} {[%emt 00:00:15]}
d6 {[%clk 01:31:06]} {[%emt 00:00:12]} 6. h3 {[%clk 01:30:15]} {[%emt
00:01:08]} O-O {[%clk 01:31:24]} {[%emt 00:00:11]} 7. e4 {[%clk 01:29:47]}
{[%emt 00:00:58]} e6 {[%clk 01:30:58]} {[%emt 00:00:57]} 8. Bd3 {[%clk
01:30:09]} {[%emt 00:00:07]} Na6 {[%clk 01:29:46]} {[%emt 00:01:42]} 9. O-O
{[%clk 01:28:01]} {[%emt 00:02:38]} Nc7 {[%clk 01:29:52]} {[%emt 00:00:23]} 10.
a4 {[%clk 01:24:23]} {[%emt 00:04:09]} Na6 {[%clk 01:13:33]} {[%emt 00:16:49]}
11. Bb1 {[%clk 01:09:33]} {[%emt 00:15:19]} e5 {[%clk 01:05:01]} {[%emt
00:09:03]} 12. Bg5 {[%clk 01:04:03]} {[%emt 00:06:01]} Kh8 {[%clk 01:00:38]}
{[%emt 00:04:53]} 13. Qd2 {[%clk 00:54:25]} {[%emt 00:10:08]} Rg8 {[%clk
00:57:39]} {[%emt 00:03:29]} 14. Ne1 {[%clk 00:51:29]} {[%emt 00:03:26]} Qf8
{[%clk 00:55:48]} {[%emt 00:02:20]} 15. f4 {[%clk 00:49:54]} {[%emt 00:02:05]}
exf4 {[%clk 00:43:28]} {[%emt 00:12:50]} 16. Bxf4 {[%clk 00:46:13]} {[%emt
00:04:11]} Nd7 {[%clk 00:41:58]} {[%emt 00:02:00]} 17. Nf3 {[%clk 00:42:41]}
{[%emt 00:04:03]} Qe7 {[%clk 00:37:35]} {[%emt 00:04:53]} 18. Bg5 {[%clk
00:35:30]} {[%emt 00:07:41]} f6 {[%clk 00:36:07]} {[%emt 00:01:57]} 19. Bh4
{[%clk 00:33:58]} {[%emt 00:02:02]} Nb4 {[%clk 00:32:48]} {[%emt 00:03:49]} 20.
Bd3 {[%clk 00:32:23]} {[%emt 00:02:05]} Ne5 {[%clk 00:31:15]} {[%emt 00:02:03]}
21. Nxe5 {[%clk 00:32:07]} {[%emt 00:00:46]} Qxe5 {[%clk 00:31:43]} {[%emt
00:00:02]} 22. Rf3 {[%clk 00:28:40]} {[%emt 00:03:56]} Bd7 {[%clk 00:28:36]}
{[%emt 00:03:37]} 23. Bg3 {[%clk 00:28:35]} {[%emt 00:00:35]} Qd4+ {[%clk
00:25:25]} {[%emt 00:03:41]} 24. Bf2 {[%clk 00:28:36]} {[%emt 00:00:29]} Qe5
{[%clk 00:25:33]} {[%emt 00:00:22]} 25. Bg3 {[%clk 00:28:13]} {[%emt 00:00:54]}
Qd4+ {[%clk 00:24:28]} {[%emt 00:01:35]} 26. Kh1 {[%clk 00:27:12]} {[%emt
00:01:31]} Nxd3 {[%clk 00:24:08]} {[%emt 00:00:49]} 27. Qxd3 {[%clk 00:27:23]}
{[%emt 00:00:19]} Qxd3 {[%clk 00:24:22]} {[%emt 00:00:17]} 28. Rxd3 {[%clk
00:27:51]} {[%emt 00:00:01]} f5 {[%clk 00:20:37]} {[%emt 00:04:15]} 29. exf5
{[%clk 00:26:46]} {[%emt 00:01:35]} Bxf5 {[%clk 00:20:54]} {[%emt 00:00:13]} 30.
Re3 {[%clk 00:26:56]} {[%emt 00:00:20]} Rge8 {[%clk 00:17:06]} {[%emt
00:04:18]} 31. Rae1 {[%clk 00:24:43]} {[%emt 00:02:43]} Rxe3 {[%clk 00:10:50]}
{[%emt 00:06:46]} 32. Rxe3 {[%clk 00:25:11]} {[%emt 00:00:01]} Bxc3 {[%clk
00:11:11]} {[%emt 00:00:10]} 33. Rxc3 {[%clk 00:23:28]} {[%emt 00:02:13]} Rd8
{[%clk 00:11:04]} {[%emt 00:00:37]} 34. Re3 {[%clk 00:22:34]} {[%emt 00:01:23]}
Rd7 {[%clk 00:11:02]} {[%emt 00:00:32]} 35. Bf4 {[%clk 00:22:26]} {[%emt
00:00:37]} Kg7 {[%clk 00:10:41]} {[%emt 00:00:51]} 36. a5 {[%clk 00:21:20]}
{[%emt 00:01:37]} 1/2-1/2

[Event "Juniorallsvenskan 2019, Division 1 and 2"]
[Site "Molnlycke kulturhus, Biblioteksgatan 2, Molnlycke, Sweden"]
[Date "2019.11.22"]
[Round "1.3"]
[White "Aira, Leonardo"]
[Black "Strom-Engdahl, Alexander"]
[Result "0-1"]
[TimeControl "90 minutes + 30 seconds per move from move one"]
[WhiteFideId "1721097"]
[BlackFideId "1741586"]
[WhiteElo "1955"]
[BlackElo "1940"]

1. e4 {[%emt 00:01:08]} e5 {[%clk 01:29:51]} {[%emt 00:00:06]} 2. f4 {[%clk
01:31:07]} {[%emt 00:00:17]} exf4 {[%clk 01:29:45]} {[%emt 00:00:37]} 3. Bc4
{[%clk 01:31:22]} {[%emt 00:00:14]} d6 {[%clk 01:25:13]} {[%emt 00:05:02]} 4.
Nf3 {[%clk 01:28:14]} {[%emt 00:03:38]} Nf6 {[%clk 01:18:35]} {[%emt 00:07:08]}
5. Nc3 {[%clk 01:25:48]} {[%emt 00:02:56]} Be7 {[%clk 01:15:33]} {[%emt
00:03:32]} 6. O-O {[%clk 01:23:46]} {[%emt 00:02:32]} c6 {[%clk 01:14:10]}
{[%emt 00:01:54]} 7. a4 {[%clk 01:18:04]} {[%emt 00:06:11]} O-O {[%clk
01:09:25]} {[%emt 00:05:16]} 8. d4 {[%clk 01:13:54]} {[%emt 00:04:40]} d5
{[%clk 01:08:16]} {[%emt 00:01:40]} 9. exd5 {[%clk 01:14:00]} {[%emt 00:00:23]}
cxd5 {[%clk 01:08:36]} {[%emt 00:00:10]} 10. Bd3 {[%clk 01:13:39]} {[%emt
00:00:51]} Bg4 {[%clk 01:07:31]} {[%emt 00:01:35]} 11. Ne2 {[%clk 01:06:56]}
{[%emt 00:07:12]} Nc6 {[%clk 01:06:39]} {[%emt 00:01:24]} 12. c3 {[%clk
01:04:52]} {[%emt 00:02:33]} Bd6 {[%clk 01:04:39]} {[%emt 00:02:30]} 13. Bxf4
{[%clk 01:00:44]} {[%emt 00:04:37]} Qc7 {[%clk 01:01:06]} {[%emt 00:04:03]} 14.
Bxd6 {[%clk 00:53:12]} {[%emt 00:08:02]} Qxd6 {[%clk 01:01:14]} {[%emt
00:00:22]} 15. Qe1 {[%clk 00:52:23]} {[%emt 00:01:17]} Rfe8 {[%clk 00:51:37]}
{[%emt 00:10:08]} 16. Qh4 {[%clk 00:47:56]} {[%emt 00:04:56]} Re3 {[%clk
00:43:17]} {[%emt 00:08:52]} 17. Rad1 {[%clk 00:42:46]} {[%emt 00:05:38]} h6
{[%clk 00:31:56]} {[%emt 00:11:53]} 18. Ng3 {[%clk 00:37:17]} {[%emt 00:05:58]}
Ne7 {[%clk 00:25:26]} {[%emt 00:07:01]} 19. Bc2 {[%clk 00:29:59]} {[%emt
00:07:47]} Ng6 {[%clk 00:22:15]} {[%emt 00:03:42]} 20. Bxg6 {[%clk 00:30:16]}
{[%emt 00:00:13]} fxg6 {[%clk 00:22:41]} {[%emt 00:00:04]} 21. Nh1 {[%clk
00:28:53]} {[%emt 00:01:53]} Rae8 {[%clk 00:19:31]} {[%emt 00:03:41]} 22. Rde1
{[%clk 00:24:22]} {[%emt 00:04:59]} Bxf3 {[%clk 00:17:37]} {[%emt 00:02:26]} 23.
gxf3 {[%clk 00:22:34]} {[%emt 00:02:18]} g5 {[%clk 00:12:45]} {[%emt 00:05:23]}
24. Qg3 {[%clk 00:20:06]} {[%emt 00:02:57]} Qxg3+ {[%clk 00:12:58]} {[%emt
00:00:18]} 25. Nxg3 {[%clk 00:18:50]} {[%emt 00:01:45]} Rxe1 {[%clk 00:13:25]}
{[%emt 00:00:03]} 26. Kf2 {[%clk 00:18:17]} {[%emt 00:01:02]} Rxf1+ {[%clk
00:13:49]} {[%emt 00:00:07]} 27. Kxf1 {[%clk 00:18:40]} {[%emt 00:00:07]} g6
{[%clk 00:14:03]} {[%emt 00:00:16]} 28. Kf2 {[%clk 00:18:43]} {[%emt 00:00:27]}
Nh5 {[%clk 00:14:19]} {[%emt 00:00:14]} 29. Ne2 {[%clk 00:18:23]} {[%emt
00:00:50]} Rxe2+ {[%clk 00:13:51]} {[%emt 00:00:59]} 0-1

[Event "Juniorallsvenskan 2019, Division 1 and 2"]
[Site "Molnlycke kulturhus, Biblioteksgatan 2, Molnlycke, Sweden"]
[Date "2019.11.22"]
[Round "1.4"]
[White "Lindholm, Gustav"]
[Black "Olsson, William"]
[Result "0-1"]
[TimeControl "90 minutes + 30 seconds per move from move one"]
[WhiteFideId "1736515"]
[BlackFideId "1741721"]
[WhiteElo "1922"]
[BlackElo "2035"]

1. d4 {[%clk 01:30:57]} {[%emt 00:00:02]} d5 {[%clk 01:30:57]} {[%emt
00:00:04]} 2. c4 {[%clk 01:31:17]} {[%emt 00:00:11]} c6 {[%clk 01:31:24]}
{[%emt 00:00:03]} 3. Nf3 {[%clk 01:31:38]} {[%emt 00:00:08]} Nf6 {[%clk
01:31:52]} {[%emt 00:00:02]} 4. Nc3 {[%clk 01:31:58]} {[%emt 00:00:10]} e6
{[%clk 01:32:19]} {[%emt 00:00:03]} 5. Bg5 {[%clk 01:32:15]} {[%emt 00:00:13]}
h6 {[%clk 01:32:44]} {[%emt 00:00:05]} 6. Bxf6 {[%clk 01:32:35]} {[%emt
00:00:09]} Qxf6 {[%clk 01:33:10]} {[%emt 00:00:05]} 7. e3 {[%clk 01:32:53]}
{[%emt 00:00:12]} Bd6 {[%clk 01:33:24]} {[%emt 00:00:16]} 8. Bd3 {[%clk
01:32:28]} {[%emt 00:00:55]} Qe7 {[%clk 01:33:23]} {[%emt 00:00:32]} 9. O-O
{[%clk 01:31:20]} {[%emt 00:01:37]} Nd7 {[%clk 01:33:49]} {[%emt 00:00:03]} 10.
Qe2 {[%clk 01:29:42]} {[%emt 00:02:08]} dxc4 {[%clk 01:32:39]} {[%emt
00:01:41]} 11. Bxc4 {[%clk 01:30:00]} {[%emt 00:00:11]} O-O {[%clk 01:31:12]}
{[%emt 00:01:56]} 12. e4 {[%clk 01:26:41]} {[%emt 00:03:50]} e5 {[%clk
01:31:36]} {[%emt 00:00:07]} 13. d5 {[%clk 01:24:30]} {[%emt 00:02:41]} c5
{[%clk 01:28:32]} {[%emt 00:03:34]} 14. Nd2 {[%clk 01:20:48]} {[%emt 00:04:12]}
Nf6 {[%clk 01:25:11]} {[%emt 00:03:51]} 15. Nb5 {[%clk 01:12:57]} {[%emt
00:08:22]} Bb8 {[%clk 01:24:05]} {[%emt 00:01:35]} 16. a4 {[%clk 01:04:23]}
{[%emt 00:09:03]} Ne8 {[%clk 01:18:53]} {[%emt 00:05:42]} 17. Qe3 {[%clk
00:59:50]} {[%emt 00:05:01]} Bd7 {[%clk 01:16:16]} {[%emt 00:03:09]} 18. Nb3
{[%clk 00:53:52]} {[%emt 00:06:28]} b6 {[%clk 01:09:50]} {[%emt 00:06:57]} 19.
a5 {[%clk 00:48:01]} {[%emt 00:06:20]} Nd6 {[%clk 01:09:12]} {[%emt 00:01:08]}
20. Nxd6 {[%clk 00:33:45]} {[%emt 00:14:46]} Bxd6 {[%clk 01:09:37]} {[%emt
00:00:05]} 21. Qd3 {[%clk 00:31:41]} {[%emt 00:02:33]} Rab8 {[%clk 01:04:43]}
{[%emt 00:05:25]} 22. axb6 {[%clk 00:30:36]} {[%emt 00:01:35]} axb6 {[%clk
01:05:03]} {[%emt 00:00:10]} 23. Bb5 {[%clk 00:29:50]} {[%emt 00:01:16]} Rfc8
{[%clk 01:04:07]} {[%emt 00:01:25]} 24. Nd2 {[%clk 00:26:29]} {[%emt 00:03:51]}
Rc7 {[%clk 00:52:25]} {[%emt 00:12:13]} 25. Ra2 {[%clk 00:23:16]} {[%emt
00:03:44]} Qe8 {[%clk 00:50:02]} {[%emt 00:02:53]} 26. Bxd7 {[%clk 00:23:11]}
{[%emt 00:00:36]} Qxd7 {[%clk 00:49:15]} {[%emt 00:01:17]} 27. Nc4 {[%clk
00:20:00]} {[%emt 00:03:41]} b5 {[%clk 00:46:13]} {[%emt 00:03:31]} 28. Nxd6
{[%clk 00:20:10]} {[%emt 00:00:19]} Qxd6 {[%clk 00:46:36]} {[%emt 00:00:07]} 29.
Rfa1 {[%clk 00:19:55]} {[%emt 00:00:46]} c4 {[%clk 00:46:58]} {[%emt 00:00:08]}
30. Qg3 {[%clk 00:18:30]} {[%emt 00:01:55]} Rcb7 {[%clk 00:34:24]} {[%emt
00:13:05]} 31. Ra6 {[%clk 00:17:17]} {[%emt 00:01:42]} Rb6 {[%clk 00:34:33]}
{[%emt 00:00:21]} 32. Rxb6 {[%clk 00:17:18]} {[%emt 00:00:29]} Rxb6 {[%clk
00:34:34]} {[%emt 00:00:30]} 33. Ra8+ {[%clk 00:16:41]} {[%emt 00:01:06]} Rb8
{[%clk 00:31:28]} {[%emt 00:03:36]} 34. Rxb8+ {[%clk 00:08:17]} {[%emt
00:08:55]} Qxb8 {[%clk 00:31:52]} {[%emt 00:00:06]} 35. Qc3 {[%clk 00:08:35]}
{[%emt 00:00:11]} Qd6 {[%clk 00:30:12]} {[%emt 00:02:09]} 36. Qa5 {[%clk
00:08:46]} {[%emt 00:00:20]} b4 {[%clk 00:26:39]} {[%emt 00:04:04]} 37. Qa8+
{[%clk 00:08:56]} {[%emt 00:00:19]} Kh7 {[%clk 00:27:06]} {[%emt 00:00:04]} 38.
Qc8 {[%clk 00:09:15]} {[%emt 00:00:10]} c3 {[%clk 00:26:08]} {[%emt 00:01:29]}
39. bxc3 {[%clk 00:07:32]} {[%emt 00:02:13]} b3 {[%clk 00:26:23]} {[%emt
00:00:16]} 40. Qf5+ {[%clk 00:00:32]} {[%emt 00:07:29]} Qg6 {[%clk 00:26:33]}
{[%emt 00:00:20]} 41. Qf3 {[%clk 00:00:58]} {[%emt 00:00:04]} b2 {[%clk
00:26:44]} {[%emt 00:00:20]} 42. Qd3 {[%clk 00:01:19]} {[%emt 00:00:09]} Qg5
{[%clk 00:26:18]} {[%emt 00:00:56]} 0-1